[Event "Titled Tuesday Blitz May 30 Early 2023"]
[White "Mamedov, Edgar"]
[Black "Harriott, Tyrell"]
[WhiteFideId "13739980"]
[BlackFideId "2086484"]
[WhiteElo "2317"]
[BlackElo "2107"]
[Result "1/2-1/2"]
[Round "04"]
[TimeControl "180+2"]
[Date "2023.05.30"]
[WhiteClock "0:00:06"]
[BlackClock "0:00:02"]

1. d4 {[%clk 0:03:00]}  d5 {[%clk 0:02:58]} 2. Nf3 {[%clk 0:03:01]}  e6 {[%clk 0:02:59]} 3. c4 {[%clk 0:02:59]}  c6 {[%clk 0:02:58]} 4. Nbd2 {[%clk 0:02:59]}  f5 {[%clk 0:02:57]} 5. g3 {[%clk 0:02:57]}  Bd6 {[%clk 0:02:57]} 6. Bg2 {[%clk 0:02:58]}  Nf6 {[%clk 0:02:57]} 7. O-O {[%clk 0:02:58]}  f4 {[%clk 0:02:58]} 8. gxf4 {[%clk 0:02:57]}  Bxf4 {[%clk 0:02:57]} 9. Ne5 {[%clk 0:02:51]}  Bxe5 {[%clk 0:02:48]} 10. dxe5 {[%clk 0:02:51]}  Ng4 {[%clk 0:02:47]} 11. Nf3 {[%clk 0:02:48]}  O-O {[%clk 0:02:47]} 12. h3 {[%clk 0:02:47]}  Nh6 {[%clk 0:02:46]} 13. Bxh6 {[%clk 0:02:46]}  gxh6 {[%clk 0:02:47]} 14. Qd2 {[%clk 0:02:45]}  Kg7 {[%clk 0:02:45]} 15. Rad1 {[%clk 0:02:42]}  Na6 {[%clk 0:02:36]} 16. e4 {[%clk 0:02:39]}  Nc7 {[%clk 0:02:28]} 17. Kh2 {[%clk 0:02:36]}  Qe8 {[%clk 0:02:19]} 18. exd5 {[%clk 0:02:34]}  exd5 {[%clk 0:02:16]} 19. Rg1 {[%clk 0:02:33]}  Qh5 {[%clk 0:02:15]} 20. Rde1 {[%clk 0:02:21]}  Kh8 {[%clk 0:02:11]} 21. Qc3 {[%clk 0:02:15]}  Be6 {[%clk 0:01:57]} 22. Nd4 {[%clk 0:01:45]}  Rxf2 {[%clk 0:01:51]} 23. Nxe6 {[%clk 0:01:44]}  Nxe6 {[%clk 0:01:48]} 24. cxd5 {[%clk 0:01:44]}  cxd5 {[%clk 0:01:45]} 25. Qg3 {[%clk 0:01:41]}  Raf8 {[%clk 0:01:37]} 26. Kh1 {[%clk 0:01:39]}  R2f5 {[%clk 0:01:28]} 27. Bxd5 {[%clk 0:01:36]}  Rg5 {[%clk 0:01:28]} 28. Qc3 {[%clk 0:01:28]}  Qg6 {[%clk 0:01:15]} 29. Rxg5 {[%clk 0:01:23]}  hxg5 {[%clk 0:01:15]} 30. Qb4 {[%clk 0:01:19]}  Re8 {[%clk 0:00:53]} 31. Qd6 {[%clk 0:00:51]}  Qf5 {[%clk 0:00:50]} 32. Bxe6 {[%clk 0:00:33]}  Rxe6 {[%clk 0:00:47]} 33. Qb8+ {[%clk 0:00:33]}  Kg7 {[%clk 0:00:47]} 34. Qxb7+ {[%clk 0:00:33]}  Kh6 {[%clk 0:00:46]} 35. Qg2 {[%clk 0:00:23]}  Rxe5 {[%clk 0:00:37]} 36. Rf1 {[%clk 0:00:22]}  Qe6 {[%clk 0:00:33]} 37. Qf3 {[%clk 0:00:13]}  Re1 {[%clk 0:00:19]} 38. Rxe1 {[%clk 0:00:06]}  Qxe1+ {[%clk 0:00:20]} 39. Kg2 {[%clk 0:00:06]}  Qd2+ {[%clk 0:00:19]} 40. Qf2 {[%clk 0:00:06]}  Qd5+ {[%clk 0:00:19]} 41. Kg3 {[%clk 0:00:06]}  Qe5+ {[%clk 0:00:19]} 42. Kf3 {[%clk 0:00:03]}  Qf6+ {[%clk 0:00:16]} 43. Kg3 {[%clk 0:00:03]}  Qe5+ {[%clk 0:00:16]} 44. Kg2 {[%clk 0:00:04]}  Qd5+ {[%clk 0:00:16]} 45. Kg3 {[%clk 0:00:04]}  Qxa2 {[%clk 0:00:12]} 46. Qf6+ {[%clk 0:00:03]}  Kh5 {[%clk 0:00:12]} 47. Qc3 {[%clk 0:00:02]}  Qf7 {[%clk 0:00:10]} 48. Qe5 {[%clk 0:00:01]}  Kg6 {[%clk 0:00:09]} 49. Qd6+ {[%clk 0:00:01]}  Qf6 {[%clk 0:00:09]} 50. Qd3+ {[%clk 0:00:02]}  Kg7 {[%clk 0:00:09]} 51. Qd7+ {[%clk 0:00:01]}  Qf7 {[%clk 0:00:10]} 52. Qd4+ {[%clk 0:00:01]}  Kg6 {[%clk 0:00:09]} 53. Qe4+ {[%clk 0:00:02]}  Kh6 {[%clk 0:00:10]} 54. Qc6+ {[%clk 0:00:02]}  Kh5 {[%clk 0:00:09]} 55. Qc3 {[%clk 0:00:01]}  h6 {[%clk 0:00:07]} 56. Qd3 {[%clk 0:00:01]}  Qf4+ {[%clk 0:00:06]} 57. Kg2 {[%clk 0:00:02]}  Kh4 {[%clk 0:00:06]} 58. b3 {[%clk 0:00:01]}  g4 {[%clk 0:00:06]} 59. hxg4 {[%clk 0:00:01]}  Qxg4+ {[%clk 0:00:06]} 60. Kh2 {[%clk 0:00:02]}  Qf4+ {[%clk 0:00:06]} 61. Kg2 {[%clk 0:00:02]}  Kg5 {[%clk 0:00:06]} 62. Qd5+ {[%clk 0:00:02]}  Kf6 {[%clk 0:00:05]} 63. Qc6+ {[%clk 0:00:02]}  Kf5 {[%clk 0:00:05]} 64. Qd7+ {[%clk 0:00:02]}  Kg5 {[%clk 0:00:05]} 65. Qxa7 {[%clk 0:00:02]}  Qd2+ {[%clk 0:00:05]} 66. Kh3 {[%clk 0:00:02]}  Qd3+ {[%clk 0:00:05]} 67. Kg2 {[%clk 0:00:02]}  Qxb3 {[%clk 0:00:06]} 68. Qc5+ {[%clk 0:00:02]}  Kg6 {[%clk 0:00:06]} 69. Qd6+ {[%clk 0:00:02]}  Kf7 {[%clk 0:00:05]} 70. Qxh6 {[%clk 0:00:02]}  Qc2+ {[%clk 0:00:06]} 71. Kg3 {[%clk 0:00:02]}  Qd3+ {[%clk 0:00:05]} 72. Kh2 {[%clk 0:00:03]}  Qe2+ {[%clk 0:00:05]} 73. Kg3 {[%clk 0:00:03]}  Qe1+ {[%clk 0:00:05]} 74. Kg2 {[%clk 0:00:03]}  Qe2+ {[%clk 0:00:06]} 75. Kg3 {[%clk 0:00:04]}  Qe1+ {[%clk 0:00:06]} 76. Kg2 {[%clk 0:00:04]}  Qe4+ {[%clk 0:00:07]} 77. Kf2 {[%clk 0:00:05]}  Qf5+ {[%clk 0:00:07]} 78. Kg3 {[%clk 0:00:05]}  Qd3+ {[%clk 0:00:05]} 79. Kf2 {[%clk 0:00:05]}  Qc2+ {[%clk 0:00:06]} 80. Kg3 {[%clk 0:00:05]}  Qb3+ {[%clk 0:00:05]} 81. Kf2 {[%clk 0:00:05]}  Qb2+ {[%clk 0:00:04]} 82. Kg3 {[%clk 0:00:06]}  Qc3+ {[%clk 0:00:04]} 83. Kh4 {[%clk 0:00:06]}  Qf3 {[%clk 0:00:03]} 84. Qh5+ {[%clk 0:00:05]}  Qxh5+ {[%clk 0:00:02]} 85. Kxh5 {[%clk 0:00:06]} 1/2-1/2


[Site "https://www.chess.com"]

[Event "Titled Tuesday Blitz May 30 Early 2023"]
[White "Llanos, Guillermo"]
[Black "Ismagilov, Damir"]
[WhiteFideId "100358"]
[BlackFideId "34199982"]
[WhiteElo "2225"]
[BlackElo "2143"]
[Result "0-1"]
[Round "04"]
[TimeControl "180+2"]
[Date "2023.05.30"]
[WhiteClock "0:00:00"]
[BlackClock "0:00:12"]

1. Nf3 {[%clk 0:02:56]}  c5 {[%clk 0:02:57]} 2. g3 {[%clk 0:02:53]}  g6 {[%clk 0:02:55]} 3. Bg2 {[%clk 0:02:53]}  Bg7 {[%clk 0:02:55]} 4. c4 {[%clk 0:02:53]}  b6 {[%clk 0:02:53]} 5. O-O {[%clk 0:02:52]}  Bb7 {[%clk 0:02:53]} 6. Nc3 {[%clk 0:02:49]}  Nf6 {[%clk 0:02:50]} 7. d4 {[%clk 0:02:49]}  cxd4 {[%clk 0:02:50]} 8. Qxd4 {[%clk 0:02:48]}  O-O {[%clk 0:02:49]} 9. Qh4 {[%clk 0:02:42]}  d6 {[%clk 0:02:48]} 10. Bh6 {[%clk 0:02:40]}  Nbd7 {[%clk 0:02:49]} 11. Bxg7 {[%clk 0:02:39]}  Kxg7 {[%clk 0:02:50]} 12. b3 {[%clk 0:02:26]}  Rc8 {[%clk 0:02:37]} 13. Rad1 {[%clk 0:02:25]}  Rc5 {[%clk 0:02:37]} 14. Ng5 {[%clk 0:02:11]}  Bxg2 {[%clk 0:02:30]} 15. Kxg2 {[%clk 0:02:11]}  Qa8+ {[%clk 0:02:21]} 16. Kg1 {[%clk 0:02:09]}  h6 {[%clk 0:02:16]} 17. Nf3 {[%clk 0:02:05]}  Ne5 {[%clk 0:01:54]} 18. Nxe5 {[%clk 0:01:59]}  Rxe5 {[%clk 0:01:55]} 19. Qd4 {[%clk 0:01:58]}  Rc8 {[%clk 0:01:52]} 20. Rd2 {[%clk 0:01:52]}  h5 {[%clk 0:01:50]} 21. Rfd1 {[%clk 0:01:50]}  h4 {[%clk 0:01:37]} 22. Nd5 {[%clk 0:01:36]}  Rh8 {[%clk 0:01:19]} 23. Nxf6 {[%clk 0:01:29]}  exf6 {[%clk 0:01:09]} 24. Qf4 {[%clk 0:01:16]}  hxg3 {[%clk 0:00:51]} 25. fxg3 {[%clk 0:01:15]}  Rhe8 {[%clk 0:00:35]} 26. Rf1 {[%clk 0:01:01]}  f5 {[%clk 0:00:33]} 27. Rf2 {[%clk 0:01:00]}  Qc6 {[%clk 0:00:30]} 28. Qd4 {[%clk 0:00:57]}  Qc5 {[%clk 0:00:27]} 29. Qxc5 {[%clk 0:00:54]}  dxc5 {[%clk 0:00:26]} 30. Kf1 {[%clk 0:00:54]}  R8e7 {[%clk 0:00:26]} 31. Rd6 {[%clk 0:00:52]}  R5e6 {[%clk 0:00:25]} 32. Rd5 {[%clk 0:00:50]}  Re3 {[%clk 0:00:23]} 33. Ke1 {[%clk 0:00:48]}  Re8 {[%clk 0:00:20]} 34. Kd2 {[%clk 0:00:48]}  R3e7 {[%clk 0:00:20]} 35. Rd6 {[%clk 0:00:47]}  Re6 {[%clk 0:00:20]} 36. Rd7 {[%clk 0:00:46]}  R8e7 {[%clk 0:00:19]} 37. Rd3 {[%clk 0:00:46]}  Re8 {[%clk 0:00:20]} 38. Rd5 {[%clk 0:00:45]}  Kf8 {[%clk 0:00:17]} 39. Rd7 {[%clk 0:00:43]}  R8e7 {[%clk 0:00:16]} 40. Rxe7 {[%clk 0:00:43]}  Kxe7 {[%clk 0:00:16]} 41. Rf3 {[%clk 0:00:43]}  Kf6 {[%clk 0:00:15]} 42. Rf4 {[%clk 0:00:42]}  g5 {[%clk 0:00:15]} 43. Rf3 {[%clk 0:00:41]}  g4 {[%clk 0:00:15]} 44. Rf4 {[%clk 0:00:40]}  Ke5 {[%clk 0:00:15]} 45. Kc3 {[%clk 0:00:37]}  Rd6 {[%clk 0:00:15]} 46. Kc2 {[%clk 0:00:35]}  Rd4 {[%clk 0:00:14]} 47. Rf2 {[%clk 0:00:35]}  Re4 {[%clk 0:00:14]} 48. Kd2 {[%clk 0:00:35]}  Kd4 {[%clk 0:00:14]} 49. Rf1 {[%clk 0:00:33]}  Ke5 {[%clk 0:00:14]} 50. e3 {[%clk 0:00:33]}  Ke6 {[%clk 0:00:13]} 51. Kd3 {[%clk 0:00:34]}  Kf6 {[%clk 0:00:12]} 52. Rb1 {[%clk 0:00:32]}  Re6 {[%clk 0:00:12]} 53. a3 {[%clk 0:00:32]}  Rd6+ {[%clk 0:00:12]} 54. Ke2 {[%clk 0:00:31]}  Ke5 {[%clk 0:00:13]} 55. b4 {[%clk 0:00:30]}  Rc6 {[%clk 0:00:11]} 56. Rb2 {[%clk 0:00:28]}  Ke4 {[%clk 0:00:09]} 57. b5 {[%clk 0:00:27]}  Rd6 {[%clk 0:00:10]} 58. Rb3 {[%clk 0:00:25]}  Rd8 {[%clk 0:00:10]} 59. a4 {[%clk 0:00:25]}  Rh8 {[%clk 0:00:10]} 60. Kf1 {[%clk 0:00:22]}  Rxh2 {[%clk 0:00:10]} 61. Ra3 {[%clk 0:00:21]}  Rc2 {[%clk 0:00:10]} 62. a5 {[%clk 0:00:21]}  Rxc4 {[%clk 0:00:11]} 63. axb6 {[%clk 0:00:21]}  axb6 {[%clk 0:00:11]} 64. Ra7 {[%clk 0:00:20]}  Kf3 {[%clk 0:00:12]} 65. Ke1 {[%clk 0:00:20]}  Kxe3 {[%clk 0:00:11]} 66. Re7+ {[%clk 0:00:19]}  Re4 {[%clk 0:00:11]} 67. Rxf7 {[%clk 0:00:19]}  Kf3+ {[%clk 0:00:11]} 68. Kd2 {[%clk 0:00:18]}  Kxg3 {[%clk 0:00:11]} 69. Rxf5 {[%clk 0:00:19]}  Rb4 {[%clk 0:00:12]} 70. Ke3 {[%clk 0:00:18]}  Rxb5 {[%clk 0:00:12]} 71. Rf1 {[%clk 0:00:00]}  Rb3+ {[%clk 0:00:12]} 0-1


[Site "https://www.chess.com"]

[Event "Titled Tuesday Blitz May 30 Early 2023"]
[White "Rodriguez Santiago, Jaime"]
[Black "Terletsky, Oleg"]
[WhiteFideId "3100898"]
[BlackFideId "14116774"]
[WhiteElo "2025"]
[BlackElo "2084"]
[Result "0-1"]
[Round "04"]
[TimeControl "180+2"]
[Date "2023.05.30"]
[WhiteClock "0:01:06"]
[BlackClock "0:02:06"]

1. d4 {[%clk 0:03:00]}  Nf6 {[%clk 0:03:00]} 2. c4 {[%clk 0:02:59]}  g6 {[%clk 0:03:00]} 3. Nc3 {[%clk 0:02:58]}  Bg7 {[%clk 0:03:00]} 4. e4 {[%clk 0:02:58]}  d6 {[%clk 0:03:01]} 5. Bg5 {[%clk 0:02:57]}  O-O {[%clk 0:02:59]} 6. Be2 {[%clk 0:02:57]}  Na6 {[%clk 0:02:58]} 7. Qd2 {[%clk 0:02:48]}  e5 {[%clk 0:02:54]} 8. d5 {[%clk 0:02:47]}  Nc5 {[%clk 0:02:54]} 9. f3 {[%clk 0:02:46]}  a5 {[%clk 0:02:54]} 10. g4 {[%clk 0:02:29]}  c6 {[%clk 0:02:53]} 11. dxc6 {[%clk 0:02:21]}  bxc6 {[%clk 0:02:43]} 12. Rd1 {[%clk 0:02:17]}  Ne6 {[%clk 0:02:26]} 13. Bh6 {[%clk 0:01:42]}  Nd4 {[%clk 0:02:23]} 14. Bxg7 {[%clk 0:01:41]}  Kxg7 {[%clk 0:02:19]} 15. h4 {[%clk 0:01:40]}  h5 {[%clk 0:02:10]} 16. g5 {[%clk 0:01:25]}  Nh7 {[%clk 0:02:09]} 17. b3 {[%clk 0:01:16]}  f6 {[%clk 0:02:06]} 18. gxf6+ {[%clk 0:01:13]}  Qxf6 {[%clk 0:02:07]} 19. Qe3 {[%clk 0:01:06]}  Nc2+ {[%clk 0:02:06]} 0-1


[Site "https://www.chess.com"]

[Event "Titled Tuesday Blitz May 30 Early 2023"]
[White "Sanhueza, Cristian"]
[Black "Mahdavi, Reza"]
[WhiteFideId "116815"]
[BlackFideId "12595926"]
[WhiteElo "2174"]
[BlackElo "2352"]
[Result "0-1"]
[Round "04"]
[TimeControl "180+2"]
[Date "2023.05.30"]
[WhiteClock "0:00:02"]
[BlackClock "0:00:18"]

1. e4 {[%clk 0:02:47]}  c5 {[%clk 0:02:57]} 2. Nf3 {[%clk 0:02:45]}  d6 {[%clk 0:02:58]} 3. d4 {[%clk 0:02:45]}  cxd4 {[%clk 0:02:59]} 4. Nxd4 {[%clk 0:02:46]}  Nf6 {[%clk 0:02:59]} 5. Nc3 {[%clk 0:02:47]}  a6 {[%clk 0:03:00]} 6. Be3 {[%clk 0:02:48]}  Ng4 {[%clk 0:02:59]} 7. Bc1 {[%clk 0:02:47]}  Nc6 {[%clk 0:02:51]} 8. Be2 {[%clk 0:02:47]}  Qb6 {[%clk 0:02:44]} 9. Bxg4 {[%clk 0:02:05]}  Bxg4 {[%clk 0:02:45]} 10. Qxg4 {[%clk 0:02:03]}  Qxd4 {[%clk 0:02:46]} 11. Be3 {[%clk 0:02:00]}  Qb4 {[%clk 0:02:37]} 12. O-O-O {[%clk 0:01:57]}  e6 {[%clk 0:02:36]} 13. f4 {[%clk 0:01:44]}  Rc8 {[%clk 0:02:31]} 14. Rhe1 {[%clk 0:01:28]}  Na5 {[%clk 0:02:27]} 15. Nd5 {[%clk 0:01:20]}  Qxe4 {[%clk 0:02:25]} 16. Bc5 {[%clk 0:01:08]}  Qg6 {[%clk 0:02:24]} 17. Qxg6 {[%clk 0:00:53]}  hxg6 {[%clk 0:02:25]} 18. Bb6 {[%clk 0:00:53]}  Nc6 {[%clk 0:02:12]} 19. h3 {[%clk 0:00:49]}  Be7 {[%clk 0:02:09]} 20. Nxe7 {[%clk 0:00:43]}  Kxe7 {[%clk 0:02:10]} 21. c3 {[%clk 0:00:38]}  Rh5 {[%clk 0:01:56]} 22. Re3 {[%clk 0:00:38]}  Rb5 {[%clk 0:01:52]} 23. Bd4 {[%clk 0:00:38]}  f6 {[%clk 0:01:44]} 24. Rg3 {[%clk 0:00:29]}  Kf7 {[%clk 0:01:37]} 25. Bf2 {[%clk 0:00:21]}  Rd8 {[%clk 0:01:22]} 26. Rgd3 {[%clk 0:00:20]}  d5 {[%clk 0:00:58]} 27. g4 {[%clk 0:00:21]}  Ne7 {[%clk 0:00:50]} 28. Kc2 {[%clk 0:00:14]}  Rc8 {[%clk 0:00:48]} 29. a4 {[%clk 0:00:14]}  Ra5 {[%clk 0:00:48]} 30. b3 {[%clk 0:00:12]}  Rc6 {[%clk 0:00:46]} 31. h4 {[%clk 0:00:11]}  b5 {[%clk 0:00:40]} 32. Kb2 {[%clk 0:00:06]}  bxa4 {[%clk 0:00:39]} 33. b4 {[%clk 0:00:07]}  Rb5 {[%clk 0:00:39]} 34. Ka3 {[%clk 0:00:07]}  Rc4 {[%clk 0:00:36]} 35. Bc5 {[%clk 0:00:07]}  Rxf4 {[%clk 0:00:34]} 36. g5 {[%clk 0:00:07]}  Rxh4 {[%clk 0:00:32]} 37. gxf6 {[%clk 0:00:07]}  gxf6 {[%clk 0:00:33]} 38. Re1 {[%clk 0:00:06]}  Nc6 {[%clk 0:00:31]} 39. Rde3 {[%clk 0:00:06]}  e5 {[%clk 0:00:27]} 40. Rd1 {[%clk 0:00:06]}  Ke6 {[%clk 0:00:26]} 41. c4 {[%clk 0:00:05]}  Rxc4 {[%clk 0:00:24]} 42. Rg3 {[%clk 0:00:05]}  g5 {[%clk 0:00:19]} 43. Rh3 {[%clk 0:00:05]}  Nxb4 {[%clk 0:00:17]} 44. Bxb4 {[%clk 0:00:05]}  Rcxb4 {[%clk 0:00:18]} 45. Rh6 {[%clk 0:00:05]}  Rb3+ {[%clk 0:00:18]} 46. Kxa4 {[%clk 0:00:06]}  Rf3 {[%clk 0:00:18]} 47. Rh8 {[%clk 0:00:05]}  Rc5 {[%clk 0:00:19]} 48. Rb1 {[%clk 0:00:04]}  Rc4+ {[%clk 0:00:18]} 49. Ka5 {[%clk 0:00:04]}  Rc6 {[%clk 0:00:17]} 50. Re8+ {[%clk 0:00:04]}  Kf5 {[%clk 0:00:17]} 51. Rd8 {[%clk 0:00:04]}  Ra3+ {[%clk 0:00:15]} 52. Kb4 {[%clk 0:00:04]}  Rb6+ {[%clk 0:00:16]} 53. Kxa3 {[%clk 0:00:04]}  Rxb1 {[%clk 0:00:17]} 54. Rxd5 {[%clk 0:00:04]}  g4 {[%clk 0:00:17]} 55. Rd1 {[%clk 0:00:02]}  Rxd1 {[%clk 0:00:18]} 0-1


[Site "https://www.chess.com"]

[Event "Titled Tuesday Blitz May 30 Early 2023"]
[White "Zenin, Dmitry"]
[Black "Ashraf, Artin"]
[WhiteFideId "4127897"]
[BlackFideId "22514805"]
[WhiteElo "2215"]
[BlackElo "2188"]
[Result "1/2-1/2"]
[Round "04"]
[TimeControl "180+2"]
[Date "2023.05.30"]
[WhiteClock "0:00:11"]
[BlackClock "0:00:30"]

1. d4 {[%clk 0:03:00]}  d5 {[%clk 0:02:57]} 2. c4 {[%clk 0:03:00]}  e6 {[%clk 0:02:58]} 3. Nc3 {[%clk 0:02:59]}  Bb4 {[%clk 0:02:56]} 4. Qb3 {[%clk 0:02:57]}  Ba5 {[%clk 0:02:40]} 5. Nf3 {[%clk 0:02:52]}  h6 {[%clk 0:02:34]} 6. e3 {[%clk 0:02:46]}  Nf6 {[%clk 0:02:33]} 7. Bd2 {[%clk 0:02:36]}  O-O {[%clk 0:02:33]} 8. Bd3 {[%clk 0:02:35]}  c6 {[%clk 0:02:22]} 9. O-O {[%clk 0:02:32]}  Nbd7 {[%clk 0:02:22]} 10. Rfd1 {[%clk 0:02:24]}  b6 {[%clk 0:02:15]} 11. cxd5 {[%clk 0:02:22]}  cxd5 {[%clk 0:02:11]} 12. Rac1 {[%clk 0:02:16]}  a6 {[%clk 0:02:06]} 13. a4 {[%clk 0:02:07]}  Bb7 {[%clk 0:02:00]} 14. Qa3 {[%clk 0:02:06]}  Bxc3 {[%clk 0:01:59]} 15. Bxc3 {[%clk 0:02:04]}  a5 {[%clk 0:01:59]} 16. b4 {[%clk 0:01:58]}  Ba6 {[%clk 0:01:56]} 17. Bxa6 {[%clk 0:01:15]}  Rxa6 {[%clk 0:01:57]} 18. b5 {[%clk 0:01:15]}  Ra7 {[%clk 0:01:52]} 19. Bb2 {[%clk 0:01:14]}  Nb8 {[%clk 0:01:46]} 20. Ne5 {[%clk 0:01:11]}  Ne4 {[%clk 0:01:42]} 21. Nc6 {[%clk 0:01:06]}  Nxc6 {[%clk 0:01:40]} 22. Rxc6 {[%clk 0:01:06]}  Qh4 {[%clk 0:01:34]} 23. g3 {[%clk 0:00:59]}  Qh5 {[%clk 0:01:23]} 24. Qd3 {[%clk 0:00:51]}  Ng5 {[%clk 0:01:21]} 25. h4 {[%clk 0:00:50]}  Nf3+ {[%clk 0:01:20]} 26. Kg2 {[%clk 0:00:50]}  Qg4 {[%clk 0:01:20]} 27. Rh1 {[%clk 0:00:49]}  g5 {[%clk 0:01:10]} 28. hxg5 {[%clk 0:00:48]}  Nxg5 {[%clk 0:01:07]} 29. Rh4 {[%clk 0:00:37]}  Qf3+ {[%clk 0:01:06]} 30. Kg1 {[%clk 0:00:36]}  Raa8 {[%clk 0:01:04]} 31. Qc2 {[%clk 0:00:28]}  Kg7 {[%clk 0:00:55]} 32. Ba3 {[%clk 0:00:26]}  Rfc8 {[%clk 0:00:46]} 33. Be7 {[%clk 0:00:20]}  Ne4 {[%clk 0:00:41]} 34. Rf4 {[%clk 0:00:16]}  Rxc6 {[%clk 0:00:39]} 35. bxc6 {[%clk 0:00:15]}  Qh5 {[%clk 0:00:36]} 36. c7 {[%clk 0:00:15]}  Rc8 {[%clk 0:00:37]} 37. Bd8 {[%clk 0:00:14]}  Ng5 {[%clk 0:00:35]} 38. Kg2 {[%clk 0:00:14]}  Qh3+ {[%clk 0:00:31]} 39. Kg1 {[%clk 0:00:14]}  Qh5 {[%clk 0:00:31]} 40. Kg2 {[%clk 0:00:11]}  Qh3+ {[%clk 0:00:31]} 41. Kg1 {[%clk 0:00:11]}  Qh5 {[%clk 0:00:30]} 1/2-1/2


[Site "https://www.chess.com"]

[Event "Titled Tuesday Blitz May 30 Early 2023"]
[White "Vlassov, Nikolai"]
[Black "Szyszylo, Rafal"]
[WhiteFideId "4103360"]
[BlackFideId "1109626"]
[WhiteElo "2324"]
[BlackElo "1951"]
[Result "0-1"]
[Round "04"]
[TimeControl "180+2"]
[Date "2023.05.30"]
[WhiteClock "0:00:00"]
[BlackClock "0:00:15"]

1. e4 {[%clk 0:03:00]}  d6 {[%clk 0:02:55]} 2. f4 {[%clk 0:03:00]}  Nf6 {[%clk 0:02:54]} 3. Nc3 {[%clk 0:02:59]}  g6 {[%clk 0:02:54]} 4. e5 {[%clk 0:02:59]}  dxe5 {[%clk 0:02:54]} 5. fxe5 {[%clk 0:02:59]}  Nd5 {[%clk 0:02:54]} 6. Nf3 {[%clk 0:02:59]}  Nxc3 {[%clk 0:02:54]} 7. bxc3 {[%clk 0:02:58]}  Bg7 {[%clk 0:02:54]} 8. d4 {[%clk 0:02:57]}  c5 {[%clk 0:02:50]} 9. Bc4 {[%clk 0:02:50]}  O-O {[%clk 0:02:50]} 10. O-O {[%clk 0:02:50]}  Bg4 {[%clk 0:02:47]} 11. Be3 {[%clk 0:02:44]}  Nc6 {[%clk 0:02:39]} 12. Rb1 {[%clk 0:02:35]}  Qc7 {[%clk 0:02:12]} 13. h3 {[%clk 0:02:11]}  Bxf3 {[%clk 0:02:09]} 14. Qxf3 {[%clk 0:02:10]}  e6 {[%clk 0:02:05]} 15. Bb5 {[%clk 0:01:48]}  cxd4 {[%clk 0:01:56]} 16. cxd4 {[%clk 0:01:48]}  Ne7 {[%clk 0:01:29]} 17. c4 {[%clk 0:01:43]}  a6 {[%clk 0:01:29]} 18. Ba4 {[%clk 0:01:38]}  Qxc4 {[%clk 0:01:29]} 19. Rxb7 {[%clk 0:01:25]}  Nf5 {[%clk 0:01:20]} 20. Bb3 {[%clk 0:01:14]}  Qd3 {[%clk 0:01:20]} 21. Bf2 {[%clk 0:01:11]}  Qxf3 {[%clk 0:01:19]} 22. gxf3 {[%clk 0:01:12]}  Rfd8 {[%clk 0:01:12]} 23. Rd1 {[%clk 0:01:08]}  Rab8 {[%clk 0:01:07]} 24. Ra7 {[%clk 0:00:54]}  Ra8 {[%clk 0:01:05]} 25. Rxa8 {[%clk 0:00:50]}  Rxa8 {[%clk 0:01:06]} 26. d5 {[%clk 0:00:51]}  exd5 {[%clk 0:01:05]} 27. Rxd5 {[%clk 0:00:46]}  Re8 {[%clk 0:01:04]} 28. f4 {[%clk 0:00:44]}  Bh6 {[%clk 0:00:59]} 29. Rd7 {[%clk 0:00:37]}  Re7 {[%clk 0:00:59]} 30. Rd8+ {[%clk 0:00:33]}  Kg7 {[%clk 0:00:57]} 31. Bc5 {[%clk 0:00:34]}  Bxf4 {[%clk 0:00:48]} 32. Bxe7 {[%clk 0:00:33]}  Nxe7 {[%clk 0:00:49]} 33. Rd7 {[%clk 0:00:31]}  Kf8 {[%clk 0:00:49]} 34. e6 {[%clk 0:00:29]}  fxe6 {[%clk 0:00:47]} 35. Bxe6 {[%clk 0:00:29]}  a5 {[%clk 0:00:42]} 36. Kg2 {[%clk 0:00:29]}  h5 {[%clk 0:00:38]} 37. Kf3 {[%clk 0:00:29]}  g5 {[%clk 0:00:38]} 38. Ke4 {[%clk 0:00:21]}  Bg3 {[%clk 0:00:38]} 39. Ra7 {[%clk 0:00:19]}  Be1 {[%clk 0:00:26]} 40. Ke5 {[%clk 0:00:14]}  Bc3+ {[%clk 0:00:27]} 41. Kd6 {[%clk 0:00:13]}  Bb4+ {[%clk 0:00:27]} 42. Kd7 {[%clk 0:00:13]}  Kg7 {[%clk 0:00:27]} 43. Ra6 {[%clk 0:00:10]}  Kf6 {[%clk 0:00:25]} 44. Bg4+ {[%clk 0:00:08]}  Ke5 {[%clk 0:00:21]} 45. Bxh5 {[%clk 0:00:09]}  Nd5 {[%clk 0:00:18]} 46. Bg4 {[%clk 0:00:05]}  Nc3 {[%clk 0:00:18]} 47. Kc6 {[%clk 0:00:04]}  Nxa2 {[%clk 0:00:18]} 48. Kb5 {[%clk 0:00:03]}  Nc3+ {[%clk 0:00:17]} 49. Kc4 {[%clk 0:00:03]}  Ne4 {[%clk 0:00:16]} 50. Re6+ {[%clk 0:00:03]}  Kf4 {[%clk 0:00:16]} 51. Re8 {[%clk 0:00:03]}  Nd6+ {[%clk 0:00:15]} 52. Kd5 {[%clk 0:00:02]}  Nxe8 {[%clk 0:00:16]} 53. Ke6 {[%clk 0:00:00]}  Bc3 {[%clk 0:00:15]} 0-1


[Site "https://www.chess.com"]

[Event "Titled Tuesday Blitz May 30 Early 2023"]
[White "koncheto"]
[Black "Arencibia Monduy, Antonio"]
[BlackFideId "3507939"]
[WhiteElo "2599"]
[BlackElo "2414"]
[Result "0-1"]
[Round "04"]
[TimeControl "180+2"]
[Date "2023.05.30"]
[WhiteClock "0:00:02"]
[BlackClock "0:00:25"]

1. d4 {[%clk 0:03:00]}  Nf6 {[%clk 0:02:59]} 2. Bg5 {[%clk 0:03:00]}  d5 {[%clk 0:02:56]} 3. h4 {[%clk 0:02:55]}  e6 {[%clk 0:02:51]} 4. Nd2 {[%clk 0:02:53]}  Be7 {[%clk 0:02:51]} 5. Ngf3 {[%clk 0:02:50]}  Nbd7 {[%clk 0:02:49]} 6. e3 {[%clk 0:02:50]}  h6 {[%clk 0:02:48]} 7. Bf4 {[%clk 0:02:49]}  c5 {[%clk 0:02:47]} 8. c4 {[%clk 0:02:46]}  b6 {[%clk 0:02:41]} 9. Bd3 {[%clk 0:02:44]}  Bb7 {[%clk 0:02:40]} 10. Rc1 {[%clk 0:02:44]}  cxd4 {[%clk 0:02:35]} 11. exd4 {[%clk 0:02:34]}  O-O {[%clk 0:02:24]} 12. g4 {[%clk 0:02:29]}  Nxg4 {[%clk 0:02:21]} 13. Rg1 {[%clk 0:02:26]}  f5 {[%clk 0:02:21]} 14. Qe2 {[%clk 0:02:21]}  Kf7 {[%clk 0:02:04]} 15. cxd5 {[%clk 0:02:09]}  Bxd5 {[%clk 0:02:00]} 16. Nh2 {[%clk 0:01:04]}  Ndf6 {[%clk 0:01:42]} 17. Nxg4 {[%clk 0:00:52]}  fxg4 {[%clk 0:00:58]} 18. Rxg4 {[%clk 0:00:47]}  Nxg4 {[%clk 0:00:58]} 19. Qxg4 {[%clk 0:00:47]}  Kg8 {[%clk 0:00:31]} 20. Bxh6 {[%clk 0:00:21]}  Bf6 {[%clk 0:00:31]} 21. Qg6 {[%clk 0:00:17]}  Rc8 {[%clk 0:00:29]} 22. Rd1 {[%clk 0:00:09]}  Bxd4 {[%clk 0:00:26]} 23. f3 {[%clk 0:00:03]}  Qxh4+ {[%clk 0:00:25]} 24. Ke2 {[%clk 0:00:02]}  Qf2# {[%clk 0:00:25]} 0-1


[Site "https://www.chess.com"]